fUSD/lending_fUSD_20240518
["ID","MTS","AMOUNT","RATE_DAILY","PERIOD"]
[327408566,1716045069881,-685.50165271,0.0003168,14]
[327408567,1716045069893,-1015.41892162,0.0003168,14]
[327408568,1716045069905,-1370.91809665,0.0003168,14]
[327408569,1716045069917,-405.5664405,0.0003168,14]
[327408570,1716045069930,-16513.83401791,0.0003168,14]
[327408571,1716045069944,-764.825,0.0003168,14]
[327408572,1716045069956,-313.52848132,0.0003168,14]
[327408573,1716045069967,-1016.1,0.0003168,14]
[327408574,1716045069979,-3629.10567974,0.0003168,14]
[327408575,1716045069994,-359.44525539,0.0003168,14]
[327408576,1716045070033,-295.80137098,0.00027939,2]
[327408577,1716045070043,-162.57544654,0.0002794,2]
[327408578,1716045070052,-156.34895342,0.0002794,2]
[327408579,1716045070062,-787.94426934,0.0002794,2]
[327408580,1716045070071,-163.90730775,0.0003168,14]
[327408581,1716045070083,-700.50685306,0.0003168,14]
[327408582,1716045070094,-7342.83059621,0.0003168,14]
[327408583,1716045070105,-35574.9608538,0.0003168,14]
[327408584,1716045070177,-264.97384629,0.0003168,14]
[327408597,1716045714366,156.61,0.00013973,2]
[327408603,1716046000945,-1000.0,0.00015961,2]
[327408604,1716046002220,-178.838,0.00015961,2]
[327408605,1716046002242,-234.19808534,0.0001606,2]
[327408606,1716046002262,-157.70718433,0.00016061,2]
[327408607,1716046002282,-217.33379748,0.00016062,2]
[327408608,1716046002304,-211.92293285,0.00016066,2]
[327408609,1716046002935,-1000.0,0.00016066,2]
[327408610,1716046003474,-184.69706715,0.00016066,2]
[327408611,1716046003497,-815.30293285,0.00016478,2]
[327408612,1716046003967,-1000.0,0.00016478,2]
[327408613,1716046004562,-1000.0,0.00016478,2]
[327408614,1716046005198,-1000.0,0.00016478,2]
[327408615,1716046005957,-1000.0,0.00016478,2]
[327408616,1716046006971,-1000.0,0.00016478,2]
[327408617,1716046007473,-1000.0,0.00016478,2]
[327408618,1716046007526,-1000.0,0.00016478,2]
[327408619,1716046055325,-400.0,0.00016478,2]
[327408637,1716046232493,-3779.70176715,0.00016478,2]
[327408639,1716046232502,-300.0,0.00016585,2]
[327408641,1716046232512,-499.99,0.00019451,2]
[327408643,1716046232521,-420.30823285,0.00019451,5]
[327408646,1716046232532,-9040.25006212,0.00019451,5]
[327408653,1716046232699,-256.269,0.00019451,5]
[327408654,1716046232711,-13707.35309184,0.00019451,5]
[327408655,1716046232720,-1798.85,0.00019452,2]
[327408656,1716046232730,-155.0,0.00019998,2]
[327408657,1716046232739,-9847.92,0.00021999,2]
[327408658,1716046232748,-2719.15478765,0.00022,2]
[327408659,1716046232758,-161.64,0.00022309,2]
[327408660,1716046232767,-163.84,0.00022651,2]
[327408661,1716046232777,-166.05,0.00022683,2]
[327408662,1716046232786,-250.0,0.00023533,2]
[327408663,1716046232795,-158.32,0.00023815,2]
[327408664,1716046232804,-158.32,0.0002397,2]
[327408665,1716046232813,-250.0,0.00024039,2]
[327408666,1716046232823,-158.32,0.00024125,2]
[327408667,1716046232832,-16597.4139877,0.00024162,2]
[327408668,1716046232843,-480.55860352,0.00024162,2]
[327408669,1716046232854,-1518.14740878,0.00024162,2]
[327408670,1716046232864,-157.70718433,0.00024279,2]
[327408671,1716046232875,-158.32,0.0002428,2]
[327408672,1716046232884,-158.32,0.00024435,2]
[327408673,1716046232894,-314.94848689,0.00024447,2]
[327408676,1716046232916,-313.48100007,0.00024447,2]
[327408692,1716046238497,-666.83051304,0.00024447,2]
[327408694,1716046238507,-158.32,0.00024591,2]
[327408695,1716046238517,-250.0,0.00024654,2]
[327408696,1716046238526,-158.32,0.00024746,2]
[327408697,1716046238535,-158.32,0.00024901,2]
[327408698,1716046238545,-158.32,0.00025056,2]
[327408699,1716046238555,-431.97,0.00025697,2]
[327408700,1716046238564,-264.45115696,0.00027356,2]
[327408701,1716046238706,-365.22789784,0.00027356,2]
[327408702,1716046238716,-291.38210216,0.00027541,2]
[327408703,1716046238728,-34076.25379784,0.00027541,2]
[327408704,1716046238737,-2500.0,0.00027541,2]
[327408705,1716046238746,-18021.0756,0.00027542,2]
[327408706,1716046238755,-1000.0,0.00027542,2]
[327408707,1716046238765,-3762.8056,0.00027542,2]
[327408708,1716046238774,-165.76896419,0.00027542,2]
[327408709,1716046238783,-11170.2215,0.00027569,2]
[327408710,1716046238793,-161.14,0.00027631,2]
[327408711,1716046238802,-161.14,0.00027632,2]
[327408712,1716046238811,-162.75297053,0.00027638,2]
[327408713,1716046238820,-216.83381979,0.00027639,2]
[327408714,1716046238829,-239.8592063,0.00027639,2]
[327408715,1716046238839,-374.25206088,0.0002764,2]
[327408716,1716046238849,-500.0,0.0002764,2]
[327408717,1716046238858,-500.0,0.0002764,2]
[327408718,1716046238867,-500.0,0.0002764,2]
[327408719,1716046238876,-500.0,0.0002764,2]
[327408720,1716046238885,-500.0,0.0002764,2]
[327408721,1716046238894,-500.0,0.0002764,2]
[327408723,1716046238903,-500.0,0.0002764,2]
[327408725,1716046238912,-500.0,0.0002764,2]
[327408727,1716046238922,-500.0,0.0002764,2]
[327408729,1716046238931,-500.0,0.0002764,2]
[327408731,1716046238942,-809.8,0.0002764,2]
[327408733,1716046238952,-500.0,0.0002764,2]
[327408735,1716046238961,-500.0,0.0002764,2]
[327408737,1716046238974,-500.0,0.0002764,2]
[327408739,1716046238984,-560.69,0.0002764,2]
[327408741,1716046238993,-500.0,0.0002764,2]
[327408743,1716046239003,-500.0,0.0002764,2]
[327408745,1716046239014,-500.0,0.0002764,2]
[327408747,1716046239023,-500.0,0.0002764,2]
[327408749,1716046239033,-500.0,0.0002764,2]
[327408751,1716046239043,-1986.3,0.0002764,2]
[327408753,1716046239054,-500.0,0.0002764,2]
[327408755,1716046239063,-500.0,0.0002764,2]
[327408757,1716046239072,-500.0,0.0002764,2]
[327408759,1716046239081,-500.0,0.0002764,2]
[327408761,1716046239091,-3819.55,0.0002764,2]
[327408763,1716046239100,-500.0,0.0002764,2]
[327408765,1716046239110,-500.0,0.0002764,2]
[327408767,1716046239119,-500.0,0.0002764,2]
[327408769,1716046239128,-500.0,0.0002764,2]
[327408771,1716046239138,-682.63,0.0002764,2]
[327408773,1716046239148,-500.0,0.0002764,2]
[327408775,1716046239158,-500.0,0.0002764,2]
[327408777,1716046239167,-500.0,0.0002764,2]
[327408778,1716046239176,-500.0,0.0002764,2]
[327408780,1716046239187,-500.32695594,0.0002764,2]
[327408783,1716046239197,-500.0,0.0002764,2]
[327408784,1716046239207,-500.0,0.0002764,2]
[327408786,1716046239216,-500.0,0.0002764,2]
[327408789,1716046239226,-500.0,0.0002764,2]
[327408790,1716046239235,-500.0,0.0002764,2]
[327408792,1716046239245,-500.0,0.0002764,2]
[327408794,1716046239254,-298.26531828,0.0002764,2]
[327408796,1716046239264,-500.0,0.00027641,2]
[327408798,1716046239274,-500.0,0.00027641,2]
[327408800,1716046239284,-500.0,0.00027641,2]
[327408802,1716046239293,-500.0,0.00027641,2]
[327408804,1716046239303,-500.0,0.00027641,2]
[327408806,1716046239313,-500.0,0.00027641,2]
[327408809,1716046239324,-500.0,0.00027641,2]
[327408810,1716046239333,-500.0,0.00027641,2]
[327408812,1716046239343,-500.0,0.00027641,2]
[327408814,1716046239353,-500.0,0.00027641,2]
[327408816,1716046239363,-500.0,0.00027641,2]
[327408818,1716046239374,-500.0,0.00027641,2]
[327408821,1716046239384,-500.0,0.00027641,2]
[327408823,1716046239394,-500.0,0.00027641,2]
[327408824,1716046239404,-500.0,0.00027641,2]
[327408826,1716046239415,-500.0,0.00027641,2]
[327408828,1716046239424,-471.80541945,0.00027641,2]
[327408830,1716046239434,-500.0,0.00027641,2]
[327408833,1716046239448,-500.0,0.00027641,2]
[327408834,1716046239459,-516.50703702,0.00027641,2]
[327408836,1716046239469,-500.0,0.00027641,2]
[327408838,1716046239480,-500.0,0.00027641,2]
[327408841,1716046239491,-500.0,0.00027641,2]
[327408843,1716046239502,-500.0,0.00027641,2]
[327408845,1716046239512,-150.0,0.00027641,2]
[327408847,1716046239523,-500.0,0.00027641,2]
[327408849,1716046239534,-500.0,0.00027641,2]
[327408851,1716046239544,-500.0,0.00027641,2]
[327408853,1716046239554,-569.34,0.00027641,2]
[327408854,1716046239564,-500.0,0.00027641,2]
[327408856,1716046239574,-500.0,0.00027641,2]
[327408858,1716046239585,-539.01402092,0.00027641,2]
[327408861,1716046239595,-500.0,0.00027641,2]
[327408863,1716046239606,-500.0,0.00027641,2]
[327408865,1716046239617,-500.0,0.00027641,2]
[327408867,1716046239627,-500.0,0.00027641,2]
[327408868,1716046239637,-500.0,0.00027641,2]
[327408870,1716046239647,-500.0,0.00027641,2]
[327408872,1716046239657,-500.0,0.00027641,2]
[327408874,1716046239667,-500.0,0.00027641,2]
[327408876,1716046239677,-500.0,0.00027641,2]
[327408878,1716046239691,-500.0,0.00027641,2]
[327408880,1716046239701,-500.0,0.00027641,2]
[327408882,1716046239711,-500.0,0.00027641,2]
[327408884,1716046239722,-500.0,0.00027641,2]
[327408886,1716046239732,-500.0,0.00027641,2]
[327408888,1716046239742,-500.0,0.00027641,2]
[327408890,1716046239753,-500.0,0.00027641,2]
[327408892,1716046239763,-500.0,0.00027641,2]
[327408894,1716046239774,-594.07,0.00027641,2]
[327408896,1716046239784,-500.0,0.00027641,2]
[327408913,1716046239956,-500.0,0.00027641,2]
[327408915,1716046239967,-500.0,0.00027641,2]
[327408917,1716046239982,-500.0,0.00027641,2]
[327408919,1716046239993,-500.0,0.00027641,2]
[327408921,1716046240003,-500.0,0.00027641,2]
[327408922,1716046240015,-500.0,0.00027641,2]
[327408924,1716046240025,-259.86049573,0.00027641,2]
[327408926,1716046240036,-500.0,0.00027641,2]
[327408928,1716046240047,-500.0,0.00027641,2]
[327408930,1716046240059,-500.0,0.00027641,2]
[327408932,1716046240070,-370.10483318,0.00027641,2]
[327408934,1716046240085,-129.89516682,0.00027641,2]
[327408936,1716046240095,-500.0,0.00027641,2]
[327408938,1716046240105,-500.0,0.00027641,2]
[327408940,1716046240116,-500.0,0.00027641,2]
[327408942,1716046240127,-989.77,0.00027641,2]
[327408944,1716046240137,-500.0,0.00027641,2]
[327408946,1716046240147,-500.0,0.00027641,2]
[327408948,1716046240157,-608.1,0.00027641,2]
[327408950,1716046240167,-500.0,0.00027641,2]
[327408952,1716046240177,-500.0,0.00027641,2]
[327408954,1716046240189,-433.28716817,0.00027641,2]
[327408956,1716046240201,-66.71283183,0.00027641,2]
[327408958,1716046240211,-590.6,0.00027641,2]
[327408959,1716046240220,-500.0,0.00027641,2]
[327408961,1716046240231,-500.0,0.00027641,2]
[327408963,1716046240240,-500.0,0.00027641,2]
[327408965,1716046240250,-500.0,0.00027641,2]
[327408967,1716046240259,-544.82622537,0.00027641,2]
[327408969,1716046240269,-500.0,0.00027641,2]
[327408971,1716046240279,-500.0,0.00027641,2]
[327408973,1716046240289,-500.0,0.00027641,2]
[327408975,1716046240298,-500.0,0.00027641,2]
[327408977,1716046240308,-500.0,0.00027641,2]
[327408980,1716046240320,-500.0,0.00027641,2]
[327408982,1716046240329,-500.0,0.00027641,2]
[327408984,1716046240339,-500.0,0.00027641,2]
[327408985,1716046240348,-500.0,0.00027641,2]
[327408987,1716046240358,-500.0,0.00027641,2]
[327408990,1716046240368,-500.0,0.00027641,2]
[327408992,1716046240377,-500.0,0.00027641,2]
[327408993,1716046240387,-500.0,0.00027641,2]
[327408996,1716046240398,-500.0,0.00027641,2]
[327408998,1716046240408,-896.8,0.00027641,2]
[327409000,1716046240418,-500.0,0.00027641,2]
[327409001,1716046240428,-500.0,0.00027641,2]
[327409003,1716046240439,-500.0,0.00027641,2]
[327409006,1716046240449,-500.0,0.00027641,2]
[327409008,1716046240459,-606.55,0.00027641,2]
[327409010,1716046240469,-500.0,0.00027641,2]
[327409011,1716046240479,-500.0,0.00027641,2]
[327409013,1716046240490,-500.0,0.00027641,2]
[327409015,1716046240499,-500.0,0.00027641,2]
[327409017,1716046240509,-500.0,0.00027641,2]
[327409019,1716046240519,-500.0,0.00027641,2]
[327409021,1716046240530,-500.0,0.00027641,2]
[327409023,1716046240539,-500.0,0.00027641,2]
[327409025,1716046240549,-500.0,0.00027641,2]
[327409027,1716046240559,-500.0,0.00027641,2]
[327409029,1716046240570,-500.0,0.00027641,2]
[327409031,1716046240579,-500.0,0.00027641,2]
[327409034,1716046240590,-500.0,0.00027641,2]
[327409036,1716046240600,-500.0,0.00027641,2]
[327409038,1716046240610,-655.65,0.00027641,2]
[327409040,1716046240621,-500.0,0.00027641,2]
[327409042,1716046240631,-500.0,0.00027641,2]
[327409044,1716046240641,-473.41852919,0.00027641,2]
[327409056,1716046240774,-26.58147081,0.00027641,2]
[327409058,1716046240783,-246.39619668,0.00027641,2]
[327409060,1716046240794,-253.60380332,0.00027641,2]
[327409062,1716046240803,-500.0,0.00027641,2]
[327409063,1716046240811,-500.0,0.00027641,2]
[327409064,1716046240820,-500.0,0.00027641,2]
[327409065,1716046240828,-500.0,0.00027641,2]
[327409066,1716046240837,-500.0,0.00027641,2]
[327409068,1716046240847,-500.0,0.00027641,2]
[327409070,1716046240855,-1041.33,0.00027641,2]
[327409072,1716046240865,-500.0,0.00027641,2]
[327409074,1716046240874,-549.92,0.00027641,2]
[327409076,1716046240883,-500.0,0.00027641,2]
[327409078,1716046240892,-177.51409479,0.00027641,2]
[327409081,1716046240908,-322.48590521,0.00027641,2]
[327409083,1716046240917,-500.0,0.00027641,2]
[327409085,1716046240926,-500.0,0.00027641,2]
[327409087,1716046240935,-500.0,0.00027641,2]
[327409089,1716046240947,-500.0,0.00027641,2]
[327409091,1716046240956,-512.34499103,0.00027641,2]
[327409093,1716046240967,-934.31,0.00027641,2]
[327409095,1716046240979,-500.0,0.00027641,2]
[327409097,1716046240988,-3103.69,0.00027641,2]
[327409099,1716046240997,-500.0,0.00027641,2]
[327409101,1716046241007,-500.0,0.00027641,2]
[327409103,1716046241017,-4162.6,0.00027641,2]
[327409105,1716046241027,-546.4,0.00027641,2]
[327409107,1716046241036,-1266.21,0.00027641,2]
[327409109,1716046241045,-500.0,0.00027641,2]
[327409111,1716046241056,-500.0,0.00027641,2]
[327409113,1716046241067,-500.0,0.00027641,2]
[327409115,1716046241077,-500.0,0.00027641,2]
[327409117,1716046241087,-500.0,0.00027641,2]
[327409119,1716046241096,-500.0,0.00027641,2]
[327409121,1716046241105,-500.0,0.00027641,2]
[327409123,1716046241114,-500.0,0.00027641,2]
[327409125,1716046241123,-500.0,0.00027641,2]
[327409127,1716046241133,-500.0,0.00027641,2]
[327409129,1716046241142,-500.0,0.00027641,2]
[327409131,1716046241153,-500.0,0.00027641,2]
[327409133,1716046241161,-500.0,0.00027641,2]
[327409134,1716046241171,-1164.52,0.00027641,2]
[327409137,1716046241180,-3597.46,0.00027641,2]
[327409139,1716046241191,-500.0,0.00027641,2]
[327409141,1716046241200,-578.67,0.00027641,2]
[327409143,1716046241209,-500.0,0.00027641,2]
[327409144,1716046241218,-500.0,0.00027641,2]
[327409147,1716046241227,-1187.83,0.00027641,2]
[327409148,1716046241236,-500.0,0.00027641,2]
[327409150,1716046241246,-500.0,0.00027641,2]
[327409152,1716046241255,-635.73,0.00027641,2]
[327409154,1716046241264,-500.0,0.00027641,2]
[327409156,1716046241273,-500.0,0.00027641,2]
[327409158,1716046241282,-500.0,0.00027641,2]
[327409160,1716046241292,-4950.13864259,0.00027642,2]
[327409163,1716046241304,-388.13533793,0.00027642,2]
[327409165,1716046241315,-192489.02387471,0.00027642,2]
[327409167,1716046241326,-68745.23698683,0.00027642,2]
[327409172,1716046241364,-361.32,0.0002764,2]
[327409175,1716046241378,-138.68,0.0002764,2]
[327409177,1716046241388,-294.237,0.00027641,2]
[327409179,1716046241400,-205.763,0.00027641,2]
[327409181,1716046241409,-127544.53230717,0.00027642,2]
[327409183,1716046241420,-1256.06869766,0.00027642,2]
[327409186,1716046241435,-22300.782624,0.00027642,2]
[327409512,1716046244778,-500.0,0.0002764,2]
[327409515,1716046244787,-120.62,0.0002764,2]
[327409518,1716046244799,-379.38,0.0002764,2]
[327409520,1716046244808,-500.0,0.00027641,2]
[327409523,1716046244817,-55.26922226,0.00027641,2]
[327409564,1716046245083,-332.59159891,0.00027641,2]
[327409567,1716046245095,-112.13917883,0.00027641,2]
[327409569,1716046245104,-1892.42105329,0.00027642,2]
[327409571,1716046245116,-392.4809798,0.00027642,2]
[327409573,1716046245127,-1022.01039904,0.00027642,2]
[327409574,1716046245138,-33104.54569411,0.00027642,2]
[327409575,1716046245149,-128557.67440287,0.00027642,2]
[327409576,1716046245159,-1515.16955668,0.00027642,2]
[327409577,1716046245168,-915.68517202,0.00027667,7]
[327409578,1716046245177,-162.35631518,0.0002774,2]
[327409579,1716046245186,-160.3767691,0.00027741,2]
[327409580,1716046245196,-200.20871114,0.00027741,2]
[327409581,1716046245205,-9323.1214263,0.00027741,2]
[327409582,1716046245214,-3229.1229,0.00027741,2]
[327409583,1716046245223,-26423.0896,0.00027742,2]
[327409584,1716046245232,-100000.0,0.00027742,2]
[327409585,1716046245241,-161.14,0.00027831,2]
[327409586,1716046245250,-500.0,0.0002784,2]
[327409587,1716046245259,-500.0,0.0002784,2]
[327409588,1716046245268,-500.0,0.0002784,2]
[327409589,1716046245277,-500.0,0.0002784,2]
[327409590,1716046245287,-500.0,0.0002784,2]
[327409591,1716046245296,-500.0,0.0002784,2]
[327409592,1716046245306,-500.0,0.0002784,2]
[327409593,1716046245315,-500.0,0.0002784,2]
[327409594,1716046245325,-500.0,0.0002784,2]
[327409595,1716046245335,-500.0,0.0002784,2]
[327409597,1716046245344,-500.0,0.0002784,2]
[327409599,1716046245353,-500.0,0.0002784,2]
[327409601,1716046245362,-500.0,0.0002784,2]
[327409603,1716046245373,-500.0,0.0002784,2]
[327409605,1716046245382,-500.0,0.0002784,2]
[327409606,1716046245391,-500.0,0.0002784,2]
[327409607,1716046245401,-500.0,0.0002784,2]
[327409608,1716046245410,-500.0,0.0002784,2]
[327409609,1716046245420,-534.34559679,0.0002784,2]
[327409610,1716046245429,-500.0,0.0002784,2]
[327409611,1716046245438,-500.0,0.0002784,2]
[327409612,1716046245449,-500.0,0.0002784,2]
[327409613,1716046245458,-500.0,0.0002784,2]
[327409614,1716046245467,-500.0,0.0002784,2]
[327409615,1716046245477,-500.0,0.0002784,2]
[327409616,1716046245486,-500.0,0.0002784,2]
[327409617,1716046245496,-500.0,0.0002784,2]
[327409618,1716046245505,-500.0,0.0002784,2]
[327409619,1716046245515,-238.94420885,0.0002784,2]
[327409620,1716046245524,-500.0,0.0002784,2]
[327409621,1716046245533,-500.0,0.0002784,2]
[327409622,1716046245543,-500.0,0.0002784,2]
[327409623,1716046245552,-500.0,0.0002784,2]
[327409624,1716046245561,-500.0,0.0002784,2]
[327409625,1716046245570,-500.0,0.0002784,2]
[327409626,1716046245580,-500.0,0.0002784,2]
[327409627,1716046245589,-500.0,0.0002784,2]
[327409628,1716046245600,-500.0,0.0002784,2]
[327409629,1716046245610,-500.0,0.0002784,2]
[327409630,1716046245620,-500.0,0.0002784,2]
[327409631,1716046245630,-500.0,0.0002784,2]
[327409632,1716046245639,-500.0,0.0002784,2]
[327409633,1716046245648,-500.0,0.0002784,2]
[327409634,1716046245658,-500.0,0.0002784,2]
[327409635,1716046245667,-559.08552313,0.0002784,2]
[327409636,1716046245677,-500.0,0.0002784,2]
[327409637,1716046245686,-502.26,0.0002784,2]
[327409638,1716046245696,-500.0,0.0002784,2]
[327409639,1716046245706,-500.0,0.0002784,2]
[327409640,1716046245715,-500.0,0.0002784,2]
[327409641,1716046245724,-500.0,0.0002784,2]
[327409642,1716046245734,-500.0,0.0002784,2]
[327409643,1716046245743,-500.0,0.0002784,2]
[327409644,1716046245752,-500.0,0.0002784,2]
[327409645,1716046245761,-500.0,0.0002784,2]
[327409646,1716046245771,-500.0,0.0002784,2]
[327409647,1716046245780,-506.75366811,0.0002784,2]
[327409648,1716046245789,-500.0,0.0002784,2]
[327409649,1716046245799,-500.0,0.0002784,2]
[327409650,1716046245809,-500.0,0.0002784,2]
[327409651,1716046245818,-500.0,0.0002784,2]
[327409652,1716046245828,-500.0,0.0002784,2]
[327409653,1716046245838,-500.0,0.0002784,2]
[327409654,1716046245848,-500.0,0.0002784,2]
[327409655,1716046245858,-500.0,0.0002784,2]
[327409656,1716046245867,-500.0,0.0002784,2]
[327409657,1716046245877,-500.0,0.0002784,2]
[327409658,1716046245886,-500.0,0.0002784,2]
[327409659,1716046245895,-500.0,0.0002784,2]
[327409660,1716046245905,-500.0,0.0002784,2]
[327409661,1716046245915,-500.0,0.0002784,2]
[327409662,1716046245924,-500.0,0.0002784,2]
[327409663,1716046245933,-489.73535711,0.0002784,2]
[327409664,1716046245943,-500.0,0.0002784,2]
[327409665,1716046245953,-500.0,0.0002784,2]
[327409666,1716046245962,-500.0,0.0002784,2]
[327409667,1716046245974,-245000.0,0.00027841,2]
[327409668,1716046245984,-1000.0,0.00027841,2]
[327409669,1716046245994,-1000.0,0.00027841,2]
[327409670,1716046246003,-623.12,0.00027914,2]
[327409671,1716046246014,-500.0,0.00027914,2]
[327409672,1716046246024,-500.0,0.00027914,2]
[327409673,1716046246034,-500.0,0.00027914,2]
[327409674,1716046246043,-500.0,0.00027914,2]
[327409675,1716046246055,-500.0,0.00027914,2]
[327409676,1716046246065,-500.0,0.00027914,2]
[327409677,1716046246074,-501.52,0.00027914,2]
[327409678,1716046246083,-174.85,0.00027914,2]
[327409679,1716046246092,-500.0,0.00027914,2]
[327409680,1716046246112,-809.8,0.00027914,2]
[327409681,1716046246122,-500.0,0.00027914,2]
[327409682,1716046246132,-500.0,0.00027914,2]
[327409683,1716046246142,-500.0,0.00027914,2]
[327409684,1716046246152,-560.69,0.00027914,2]
[327409685,1716046246161,-500.0,0.00027914,2]
[327409686,1716046246171,-500.0,0.00027914,2]
[327409687,1716046246180,-500.0,0.00027914,2]
[327409688,1716046246190,-500.0,0.00027914,2]
[327409689,1716046246201,-500.0,0.00027914,2]
[327409690,1716046246210,-1986.3,0.00027914,2]
[327409691,1716046246218,-293.47075992,0.00027914,2]
[327409692,1716046246228,-500.0,0.00027914,2]
[327409693,1716046246238,-500.0,0.00027914,2]
[327409694,1716046246248,-3819.55,0.00027914,2]
[327409695,1716046246257,-500.0,0.00027914,2]
[327409696,1716046246267,-500.0,0.00027914,2]
[327409697,1716046246276,-299.21,0.00027914,2]
[327409698,1716046246286,-682.63,0.00027914,2]
[327409699,1716046246296,-500.0,0.00027914,2]
[327409700,1716046246306,-500.0,0.00027914,2]
[327409701,1716046246316,-500.0,0.00027914,2]
[327409702,1716046246325,-500.0,0.00027914,2]
[327409703,1716046246335,-500.0,0.00027914,2]
[327409704,1716046246345,-500.0,0.00027914,2]
[327409705,1716046246355,-500.0,0.00027914,2]
[327409706,1716046246364,-500.0,0.00027914,2]
[327409707,1716046246374,-500.0,0.00027914,2]
[327409708,1716046246383,-219.22,0.00027914,2]
[327409709,1716046246392,-545.36,0.00027914,2]
[327409710,1716046246402,-500.0,0.00027915,2]
[327409711,1716046246412,-500.0,0.00027915,2]
[327409712,1716046246422,-500.0,0.00027915,2]
[327409713,1716046246431,-236.61849521,0.00027915,2]
[327409714,1716046246441,-500.0,0.00027915,2]
[327409715,1716046246451,-500.0,0.00027915,2]
[327409716,1716046246461,-500.0,0.00027915,2]
[327409717,1716046246470,-500.0,0.00027915,2]
[327409718,1716046246480,-500.0,0.00027915,2]
[327409719,1716046246489,-500.0,0.00027915,2]
[327409720,1716046246499,-170.06,0.00027915,2]
[327409721,1716046246508,-500.0,0.00027915,2]
[327409722,1716046246518,-500.0,0.00027915,2]
[327409723,1716046246527,-500.0,0.00027915,2]
[327409724,1716046246537,-500.0,0.00027915,2]
[327409725,1716046246546,-468.57653344,0.00027915,2]
[327409726,1716046246556,-578.65,0.00027915,2]
[327409727,1716046246565,-210.92,0.00027915,2]
[327409728,1716046246575,-500.0,0.00027915,2]
[327409729,1716046246585,-500.0,0.00027915,2]
[327409730,1716046246595,-500.0,0.00027915,2]
[327409731,1716046246604,-569.34,0.00027915,2]
[327409732,1716046246613,-500.0,0.00027915,2]
[327409733,1716046246623,-500.0,0.00027915,2]
[327409734,1716046246632,-500.0,0.00027915,2]
[327409735,1716046246641,-500.0,0.00027915,2]
[327409736,1716046246650,-500.0,0.00027915,2]
[327409737,1716046246660,-500.0,0.00027915,2]
[327409738,1716046246670,-500.0,0.00027915,2]
[327409739,1716046246679,-500.0,0.00027915,2]
[327409740,1716046246688,-500.0,0.00027915,2]
[327409741,1716046246697,-500.0,0.00027915,2]
[327409742,1716046246707,-500.0,0.00027915,2]
[327409743,1716046246716,-500.0,0.00027915,2]
[327409744,1716046246729,-500.0,0.00027915,2]
[327409745,1716046246739,-541.7,0.00027915,2]
[327409746,1716046246748,-500.0,0.00027915,2]
[327409747,1716046246758,-500.0,0.00027915,2]
[327409748,1716046246768,-500.0,0.00027915,2]
[327409749,1716046246778,-500.0,0.00027915,2]
[327409750,1716046246787,-500.0,0.00027915,2]
[327409751,1716046246797,-500.0,0.00027915,2]
[327409752,1716046246807,-989.77,0.00027915,2]
[327409753,1716046246816,-500.0,0.00027915,2]
[327409754,1716046246825,-500.0,0.00027915,2]
[327409755,1716046246835,-608.1,0.00027915,2]